bitfinex-derivatives/quotes_SOLF0:USTF0_20240913
["timestamp","ask_amount","ask_price","bid_price","bid_amount"]
[1726265534674,3.5789,139.63,139.58,3.58]
[1726265535370,3.5792,139.62,139.51,3.56023088]
[1726265535566,3.5792,139.62,139.57,3.5803]
[1726265535976,3.5794,139.61,139.56,3.5806]
[1726265536172,3.5794,139.61,139.51,3.65528359]
[1726265536368,1.3795,139.65,139.46,7.1663]
[1726265536676,21.53,139.59,139.46,7.1663]
[1726265537574,3.5799,139.59,139.46,7.1663]
[1726265538078,2.7645,139.6,139.46,7.1663]
[1726265538580,21.53,139.59,139.46,7.1663]
[1726265539678,21.53,139.58,139.46,7.1663]
[1726265539872,21.53,139.58,139.54,3.581]
[1726265540178,21.53,139.58,139.51,3.67003003]
[1726265540368,22.8661,139.58,139.46,7.1663]
[1726265540572,21.53,139.57,139.46,7.1663]
[1726265540978,25.1104,139.57,139.41,7.1689]
[1726265541476,25.1104,139.57,139.42,1.31655311]
[1726265541674,21.53,139.56,139.52,3.5817]
[1726265542680,3.5804,139.57,139.52,3.5817]
[1726265544182,3.5807,139.56,139.52,3.5817]
[1726265544984,1.3361,139.58,139.49,3.63044193]
[1726265545179,2.7645,139.6,139.45,7.176]
[1726265545380,2.7645,139.6,139.46,1.31633631]
[1726265545581,21.53,139.59,139.55,3.5808]
[1726265546375,25.1099,139.59,139.55,3.5808]
[1726265546576,3.5799,139.59,139.55,3.5808]
[1726265546977,2.7645,139.6,139.55,3.5808]
[1726265547172,2.7645,139.6,139.56,3.5807]
[1726265547579,2.7645,139.6,139.53,3.51329623]
[1726265547778,2.7645,139.6,139.56,3.5806]
[1726265548376,2.7645,139.6,139.55,3.5808]
[1726265548577,2.7645,139.6,139.53,3.53801505]
[1726265548888,2.7645,139.6,139.56,3.5805]
[1726265550382,21.53,139.59,139.56,3.5805]
[1726265550983,21.53,139.59,139.55,3.5809]
[1726265551184,25.1099,139.59,139.55,3.5809]
[1726265551480,3.5799,139.59,139.55,3.5809]
[1726265555490,21.53,139.59,139.55,3.5809]
[1726265556489,2.7645,139.6,139.55,3.5809]
[1726265556898,2.7645,139.6,139.54,3.5811]
[1726265557303,2.7645,139.6,139.51,3.6593812]
[1726265557593,3.5801,139.59,139.55,3.5809]
[1726265558192,21.53,139.59,139.56,3.5806]
[1726265560406,21.53,139.58,139.56,3.5806]
[1726265561396,21.53,139.57,139.56,3.5806]
[1726265562400,3.58,139.59,139.56,3.5806]
[1726265566301,2.7645,139.6,139.51,3.66582756]
[1726265566499,1.4298,139.58,139.46,7.1662]
[1726265566902,3.5804,139.57,139.53,3.5813]
[1726265568306,5.01,139.58,139.54,3.5812]
[1726265568608,21.53,139.57,139.54,3.5812]
[1726265570912,1.4298,139.58,139.55,3.5809]
[1726265572001,1.4298,139.58,139.5,3.60106387]
[1726265572205,1.4298,139.58,139.47,7.1659]
[1726265572813,21.53,139.59,139.47,7.1659]
[1726265573002,2.7645,139.6,139.47,7.1659]
[1726265573715,21.53,139.59,139.47,7.1659]
[1726265574508,21.53,139.59,139.56,3.5807]
[1726265574716,2.7645,139.6,139.56,3.5807]
[1726265575212,2.7645,139.6,139.54,3.62132489]
[1726265575421,2.7645,139.6,139.47,7.1659]
[1726265576814,2.7645,139.6,139.56,3.5805]
[1726265577507,21.53,139.59,139.47,7.1659]
[1726265578910,21.53,139.59,139.55,3.5809]
[1726265579218,21.53,139.59,139.47,7.1659]
[1726265579824,21.53,139.59,139.56,3.5806]
[1726265580516,21.53,139.59,139.57,3.5804]
[1726265581017,21.53,139.59,139.54,3.49821418]
[1726265581218,21.53,139.59,139.56,3.5805]
[1726265582111,21.53,139.59,139.55,3.5809]
[1726265583027,21.53,139.59,139.54,3.5811]
[1726265583028,25.11,139.59,139.54,3.5811]
[1726265583336,21.53,139.59,139.47,7.1659]
[1726265584535,21.53,139.59,139.55,3.5808]
[1726265585631,25.1099,139.59,139.55,3.5808]
[1726265586332,21.53,139.59,139.53,3.5813]
[1726265586735,21.53,139.59,139.51,3.54216814]
[1726265587034,3.5806,139.57,139.52,3.5816]
[1726265587433,3.5806,139.57,139.53,3.5814]
[1726265587638,21.53,139.59,139.53,3.5814]
[1726265587639,3.5803,139.58,139.53,3.5814]
[1726265590842,3.5803,139.58,139.54,3.581]
[1726265591239,21.53,139.59,139.51,3.62757125]
[1726265591541,21.53,139.59,139.55,3.5808]
[1726265591742,25.11,139.59,139.55,3.5808]
[1726265592341,21.53,139.59,139.52,3.58566093]
[1726265592542,21.53,139.59,139.46,7.1661]
[1726265593344,21.53,139.59,139.55,3.5808]
[1726265594442,21.53,139.59,139.52,3.50291491]
[1726265594643,21.53,139.59,139.57,3.5803]
[1726265594851,21.53,139.59,139.53,3.57762564]
[1726265595042,21.53,139.59,139.56,3.5805]
[1726265599133,21.53,139.59,139.47,14.3417]
[1726265599134,21.53,139.59,139.47,7.1657]
[1726265599349,21.53,139.59,139.55,3.5808]
[1726265600240,25.1101,139.59,139.55,3.5808]
[1726265600844,25.1101,139.59,139.52,3.61820002]
[1726265601150,25.1101,139.59,139.47,7.1657]
[1726265601941,3.5802,139.58,139.47,7.1657]
[1726265603445,25.11,139.59,139.47,7.1657]
[1726265603645,25.11,139.59,139.54,3.581]
[1726265604649,21.53,139.59,139.52,3.63386163]
[1726265604839,21.53,139.59,139.47,7.1657]
[1726265605038,21.53,139.59,139.55,3.5808]
[1726265605452,21.53,139.59,139.53,3.58478927]
[1726265605752,21.53,139.59,139.47,7.1657]
[1726265606346,21.53,139.59,139.55,3.5808]
[1726265606549,21.53,139.59,139.53,3.51207622]
[1726265606748,21.53,139.59,139.47,7.1657]
[1726265608450,21.53,139.59,139.48,1.31614342]
[1726265608656,21.53,139.59,139.48,4.89376885]
[1726265608846,21.53,139.59,139.48,3.57762543]
[1726265609047,21.53,139.59,139.47,7.1657]
[1726265609255,21.53,139.59,139.48,1.31614343]
[1726265609460,21.53,139.59,139.48,4.82213038]
[1726265609652,21.53,139.59,139.48,3.50598695]
[1726265609953,21.53,139.59,139.47,7.1657]
[1726265610151,21.53,139.59,139.48,1.31614139]
[1726265610352,21.53,139.59,139.48,4.90435641]
[1726265610552,21.53,139.59,139.48,3.58821502]
[1726265610752,21.53,139.59,139.58,3.5802]
[1726265611551,1.3372,139.63,139.58,3.5802]
[1726265611552,2.6617,139.63,139.58,3.5802]
[1726265611856,2.6617,139.63,139.48,3.57209868]
[1726265612046,1.3936,139.62,139.47,7.1657]
[1726265612449,26.45522874,139.62,139.42,7.176]
[1726265612652,21.53,139.6,139.43,1.31624143]
[1726265613051,25.1097,139.6,139.54,3.581]
[1726265613358,25.1097,139.6,139.54,3.62177746]
[1726265613558,3.5795,139.61,139.54,3.5809]
[1726265613761,21.53,139.6,139.54,3.5809]
[1726265614061,21.53,139.6,139.53,3.59026195]
[1726265614248,21.53,139.6,139.42,7.176]
[1726265614449,21.53,139.6,139.43,1.3162783]
[1726265614648,21.53,139.6,139.44,1.3162783]
[1726265614850,21.53,139.6,139.45,1.3162783]
[1726265615050,21.53,139.6,139.46,1.3162783]
[1726265615251,21.53,139.6,139.42,7.176]
[1726265615452,21.53,139.6,139.45,7.176]
[1726265615653,1.3936,139.62,139.46,1.31628584]
[1726265615851,1.3936,139.62,139.47,7.176]
[1726265616054,21.53,139.61,139.55,3.5807]
[1726265616254,21.53,139.61,139.55,7.24733917]
[1726265616654,25.1094,139.61,139.55,7.24733917]
[1726265617056,3.5794,139.61,139.55,7.24733917]
[1726265617656,3.5794,139.61,139.55,3.5807]
[1726265619256,21.53,139.6,139.55,3.5807]
[1726265619657,21.53,139.6,139.54,3.581]
[1726265620458,21.53,139.61,139.54,3.581]
[1726265620759,25.1099,139.59,139.54,3.581]
[1726265620962,2.6457,139.58,139.54,3.581]
[1726265621165,2.6457,139.58,139.55,3.5809]
[1726265621358,2.6457,139.58,139.45,7.1666]
[1726265621553,2.6457,139.58,139.55,3.5808]
[1726265622757,24.1757,139.58,139.55,3.5808]
[1726265623964,21.53,139.57,139.55,3.5808]
[1726265624762,2.6457,139.58,139.55,3.5808]
[1726265627059,2.6457,139.58,139.53,3.56278701]
[1726265627263,2.6457,139.58,139.46,14.3424]
[1726265627465,2.6457,139.58,139.46,17.86282051]
[1726265627967,2.6457,139.58,139.47,14.3417]
[1726265628667,2.6457,139.58,139.47,10.75059052]
[1726265628853,2.6457,139.58,139.55,3.5808]
[1726265629261,2.6457,139.58,139.47,10.75059052]
[1726265630963,2.6457,139.58,139.47,17.92659052]
[1726265631164,2.6457,139.58,139.57,3.5804]
[1726265631358,2.6457,139.58,139.47,17.92659052]
[1726265631563,2.6457,139.58,139.47,10.76089052]
[1726265631760,2.6457,139.58,139.54,3.581]
[1726265632572,2.6457,139.58,139.55,3.5809]
[1726265633156,1.3936,139.62,139.56,3.5805]
[1726265633562,2.6381,139.61,139.56,3.5805]
[1726265634169,18.25444716,139.61,139.56,3.5805]
[1726265634572,39.78444716,139.61,139.56,3.5805]
[1726265634770,24.1681,139.61,139.56,3.5805]
[1726265634971,2.6381,139.61,139.57,3.5804]
[1726265636274,2.6381,139.61,139.57,7.16825602]
[1726265636468,2.6381,139.61,139.57,3.5804]
[1726265636974,2.6381,139.61,139.57,7.07622298]
[1726265637768,24.1681,139.61,139.56,3.5806]
[1726265637964,24.1681,139.61,139.56,7.18600318]
[1726265638378,24.1681,139.61,139.56,3.5806]
[1726265638976,21.53,139.6,139.56,3.5806]
[1726265640379,21.53,139.6,139.55,3.56887645]
[1726265640675,21.53,139.6,139.45,14.3427]
[1726265640876,21.53,139.6,139.55,3.5807]
[1726265641079,21.53,139.6,139.55,7.17464381]
[1726265641577,21.53,139.6,139.55,3.5807]
[1726265641764,3.5797,139.6,139.55,3.5807]
[1726265641964,24.1681,139.61,139.55,3.5807]
[1726265642468,3.5797,139.6,139.54,3.5811]
[1726265642670,24.1681,139.61,139.45,7.1667]
[1726265642981,21.53,139.59,139.45,7.1667]
[1726265643177,3.5802,139.58,139.42,3.58069392]
[1726265643365,3.5802,139.58,139.43,1.31642069]
[1726265643672,1.3827,139.57,139.44,1.31642069]
[1726265643873,1.3827,139.57,139.4,7.176]
[1726265644068,2.7995,139.56,139.52,3.5815]
[1726265644271,2.7995,139.56,139.52,7.09282121]
[1726265644569,2.7995,139.56,139.4,10.73817359]
[1726265644773,24.3295,139.56,139.51,3.5819]
[1726265645673,2.7995,139.56,139.51,3.5819]
[1726265646571,2.7995,139.56,139.52,3.5816]
[1726265646873,2.7995,139.56,139.5,3.5833024]
[1726265647068,2.7995,139.56,139.4,10.73817359]
[1726265647279,2.7995,139.56,139.52,3.5815]
[1726265648482,24.3295,139.56,139.51,3.5819]
[1726265649880,21.53,139.55,139.4,10.73817359]
[1726265650075,21.53,139.55,139.41,1.3166616]
[1726265650468,21.53,139.55,139.4,3.56217359]
[1726265650673,21.53,139.55,139.39,7.1697]
[1726265650984,3.5815,139.53,139.47,3.5828]
[1726265651280,1.4066,139.52,139.47,3.499082]
[1726265651488,1.4066,139.52,139.48,3.5825]
[1726265651969,1.4066,139.52,139.47,3.63326975]
[1726265652173,1.4066,139.52,139.49,3.5824]
[1726265652372,1.4066,139.52,139.47,3.6314782]
[1726265652574,1.4066,139.52,139.48,3.5826]
[1726265653089,2.7744,139.51,139.48,3.5826]
[1726265653273,2.7744,139.51,139.47,7.14450762]
[1726265653777,2.7744,139.51,139.48,3.5827]
[1726265653980,6.3564,139.51,139.39,10.75653664]
[1726265654186,21.53,139.5,139.39,10.75653664]
[1726265654581,21.53,139.5,139.46,3.5831]
[1726265654978,25.1122,139.5,139.44,3.5835]
[1726265655281,2.7744,139.51,139.39,3.58683664]
[1726265655479,2.7744,139.51,139.46,3.5831]
[1726265655674,24.3044,139.51,139.46,3.5831]
[1726265656285,27.8864,139.51,139.46,3.5831]
[1726265657081,21.53,139.5,139.46,3.5831]
[1726265658274,24.3044,139.51,139.46,3.5831]
[1726265658479,24.3044,139.51,139.47,3.5829]
[1726265659173,24.3044,139.51,139.48,3.5825]
[1726265659379,2.7744,139.51,139.44,3.66989026]
[1726265659682,2.7744,139.51,139.46,3.5831]
[1726265659683,21.53,139.5,139.46,3.5831]
[1726265660077,21.53,139.5,139.44,3.54803844]
[1726265660278,21.53,139.5,139.46,3.5831]
[1726265660476,21.53,139.5,139.44,3.52546001]
[1726265660783,2.7744,139.51,139.37,14.3467]
[1726265660977,24.3044,139.51,139.38,1.31701577]
[1726265661483,24.3044,139.51,139.46,3.5831]
[1726265663391,2.7744,139.51,139.47,3.5828]
[1726265663685,2.7744,139.51,139.44,3.56534208]
[1726265663891,24.3044,139.51,139.46,3.5831]
[1726265664888,24.3044,139.51,139.44,3.52197593]
[1726265664889,21.53,139.5,139.44,3.52197593]
[1726265665086,21.53,139.5,139.37,17.88864585]
[1726265665592,21.53,139.5,139.38,1.31707404]
[1726265665991,24.3044,139.51,139.46,3.583]
[1726265666195,24.3044,139.51,139.37,17.88864585]
[1726265666196,24.3044,139.51,139.44,3.54993416]
[1726265666496,24.3044,139.51,139.38,14.3465]
[1726265666691,24.3044,139.51,139.39,1.3169244]
[1726265667192,2.7744,139.51,139.39,1.3169244]
[1726265667491,2.7744,139.51,139.48,3.5826]
[1726265672192,24.3044,139.51,139.47,3.5828]
[1726265672998,24.3044,139.51,139.46,3.5832]
[1726265672999,27.8865,139.51,139.46,3.5832]
[1726265673698,27.8865,139.51,139.47,3.5829]
[1726265675196,3.5822,139.5,139.46,3.5831]
[1726265676700,3.5826,139.49,139.45,3.5834]
[1726265677200,25.1126,139.49,139.45,3.5834]
[1726265677595,25.1126,139.49,139.46,3.5832]
[1726265678398,25.1126,139.49,139.38,7.1705]
[1726265678708,21.53,139.49,139.38,7.1705]
[1726265679295,3.5829,139.48,139.38,7.1705]
[1726265679702,3.5829,139.48,139.43,3.5839]
[1726265680001,25.1126,139.49,139.37,3.54194585]
[1726265680205,25.1126,139.49,139.43,3.5838]
[1726265681210,25.1126,139.49,139.44,3.5837]
[1726265681706,25.1126,139.49,139.42,3.5247375]
[1726265681905,21.53,139.48,139.45,3.5834]
[1726265682505,21.53,139.48,139.46,3.5831]
[1726265682897,3.5823,139.5,139.46,3.5831]
[1726265683505,3.5823,139.5,139.47,3.583]
[1726265688118,3.5823,139.5,139.48,3.5827]
[1726265688310,21.53,139.5,139.43,3.54711369]
[1726265688518,21.53,139.5,139.38,7.1706]
[1726265688708,21.53,139.5,139.38,10.74469869]
[1726265689026,25.1124,139.5,139.47,3.5828]
[1726265689504,3.5824,139.5,139.47,3.5828]
[1726265695523,3.5825,139.49,139.47,3.5828]
[1726265696728,21.53,139.49,139.38,10.74469869]
[1726265697127,3.5832,139.46,139.43,3.5839]
[1726265697319,21.53,139.49,139.38,3.57409869]
[1726265697632,3.5835,139.46,139.43,3.584]
[1726265698122,3.5835,139.46,139.39,3.5045587]
[1726265698425,3.5835,139.46,139.42,3.5841]
[1726265698822,3.5837,139.45,139.41,3.5844]
[1726265699032,21.53,139.44,139.41,3.5844]
[1726265699419,21.53,139.44,139.38,3.54900641]
[1726265699729,21.53,139.44,139.35,2.7691]
[1726265700118,21.53,139.44,139.4,3.5845]
[1726265700320,21.53,139.44,139.38,3.52948213]
[1726265700627,1.402,139.45,139.35,2.7691]
[1726265701524,1.4411,139.49,139.36,7.1716]
[1726265701727,21.53,139.48,139.36,7.1716]
[1726265702130,21.53,139.48,139.44,3.5836]
[1726265702334,21.53,139.48,139.43,3.54490098]
[1726265702518,21.53,139.48,139.36,7.1716]
[1726265702830,1.4411,139.49,139.36,14.3456]
[1726265703131,1.4411,139.49,139.35,2.7691]
[1726265703132,21.53,139.5,139.37,15.66220588]
[1726265703328,21.53,139.5,139.37,17.91418331]
[1726265703628,1.331,139.51,139.47,3.5828]
[1726265703829,1.331,139.51,139.45,3.56595782]
[1726265704036,22.861,139.51,139.47,3.583]
[1726265704529,21.53,139.51,139.49,3.5823]
[1726265704928,21.52,139.54,139.45,3.6279589]
[1726265705125,21.52,139.53,139.37,17.91418331]
[1726265705427,21.52,139.53,139.38,1.31704345]
[1726265705628,21.52,139.53,139.37,17.91418331]
[1726265705930,21.52,139.53,139.38,1.31704945]
[1726265706230,1.413,139.55,139.38,1.31704945]
[1726265706534,22.933,139.55,139.38,1.31704945]
[1726265707419,1.413,139.55,139.38,1.31704945]
[1726265707632,3.5814,139.54,139.47,3.5828]
[1726265707833,3.5814,139.54,139.47,7.25323893]
[1726265708726,3.5814,139.54,139.48,3.5825]
[1726265711032,1.413,139.55,139.47,3.67043893]
[1726265711226,1.413,139.55,139.37,17.91418331]
[1726265711428,1.413,139.55,139.38,1.31701404]
[1726265711630,3.582,139.51,139.45,3.5833]
[1726265711828,1.413,139.55,139.45,3.66828892]
[1726265712026,22.933,139.55,139.37,10.74018331]
[1726265712227,3.5818,139.52,139.46,3.5831]
[1726265712831,22.933,139.55,139.47,3.5828]
[1726265712832,3.5815,139.53,139.47,3.5828]
[1726265713432,3.5815,139.53,139.48,3.5827]
[1726265713730,3.5812,139.54,139.45,3.57619648]
[1726265713931,3.5812,139.54,139.49,3.5823]
[1726265716338,3.5816,139.53,139.49,3.5823]
[1726265718638,1.413,139.55,139.49,3.5823]
[1726265718639,3.5818,139.52,139.49,3.5823]
[1726265720333,3.5815,139.53,139.49,3.5823]
[1726265721034,3.5815,139.53,139.5,3.582]
[1726265723131,25.1013,139.54,139.51,3.5819]
[1726265723333,21.52,139.53,139.51,3.5819]
[1726265723537,21.52,139.53,139.45,3.57430278]
[1726265723841,21.52,139.53,139.43,2.7252]
[1726265724338,1.413,139.55,139.52,3.5817]
[1726265725031,22.933,139.55,139.52,3.5817]
[1726265726137,1.413,139.55,139.53,3.5814]
[1726265726439,1.413,139.55,139.49,3.50298085]
[1726265726641,1.413,139.55,139.53,3.5812]
[1726265728247,1.413,139.55,139.52,3.5816]
[1726265729344,1.413,139.55,139.5,3.53146648]
[1726265729649,1.413,139.55,139.43,2.7252]
[1726265730542,22.933,139.55,139.43,2.7252]
[1726265731041,22.933,139.55,139.51,3.5818]
[1726265731435,26.5141,139.55,139.43,2.7252]
[1726265731631,26.5141,139.55,139.49,3.5823]
[1726265731632,22.933,139.55,139.49,3.5823]
[1726265731831,1.413,139.55,139.49,3.5823]
[1726265732339,1.413,139.55,139.5,3.582]
[1726265732539,1.413,139.55,139.47,3.63248835]
[1726265732739,1.413,139.55,139.43,2.7252]
[1726265732930,1.413,139.55,139.52,3.5816]
[1726265737851,1.413,139.55,139.53,3.5814]
[1726265738648,1.329,139.56,139.51,3.57291869]
[1726265738952,21.52,139.58,139.44,7.1674]
[1726265739344,21.52,139.58,139.54,3.581]
[1726265739546,21.52,139.58,139.51,3.60705376]
[1726265739758,21.52,139.57,139.45,14.3407]
[1726265740459,21.52,139.57,139.45,17.94488789]
[1726265740847,1.348,139.59,139.56,3.5805]
[1726265741249,1.348,139.59,139.55,3.65398236]
[1726265741556,1.348,139.59,139.56,3.5805]
[1726265742860,22.868,139.59,139.45,17.94488789]
[1726265744958,22.868,139.59,139.55,3.5809]
[1726265745564,21.52,139.58,139.54,3.5811]
[1726265746456,22.868,139.59,139.54,3.5811]
[1726265746854,22.868,139.59,139.55,3.5808]
[1726265747161,22.868,139.59,139.45,17.94488789]
[1726265747561,21.52,139.58,139.55,3.5808]
[1726265748167,21.52,139.58,139.56,3.5806]
[1726265748563,1.348,139.59,139.56,3.5806]
[1726265748864,1.348,139.59,139.54,3.64997326]
[1726265749056,1.348,139.59,139.46,7.1665]
[1726265749363,1.348,139.59,139.56,3.5805]
[1726265749568,22.868,139.59,139.56,3.5805]
[1726265750264,22.868,139.59,139.57,3.5804]
[1726265750669,21.52,139.58,139.57,3.5804]
[1726265750861,21.52,139.58,139.56,3.5806]
[1726265751667,1.348,139.59,139.56,3.5806]
[1726265753370,22.868,139.59,139.55,3.5808]
[1726265753571,22.868,139.59,139.54,3.6116537]
[1726265753773,22.868,139.59,139.46,7.1665]
[1726265755070,26.4479,139.59,139.54,3.581]
[1726265755267,26.4479,139.59,139.52,3.51459009]
[1726265755468,26.4479,139.59,139.54,3.581]
[1726265755772,25.1002,139.58,139.52,3.54897312]
[1726265755969,25.1002,139.58,139.46,7.1665]
[1726265756270,21.52,139.58,139.54,3.581]
[1726265757774,21.52,139.57,139.53,3.5814]
[1726265758675,3.5803,139.58,139.53,3.5814]
[1726265758874,3.5803,139.58,139.54,3.5812]
[1726265760071,3.5806,139.57,139.52,3.5815]
[1726265760377,1.348,139.59,139.46,7.1665]
[1726265760582,21.52,139.55,139.51,3.5817]
[1726265760767,21.52,139.55,139.45,3.60418789]
[1726265761084,2.7692,139.54,139.47,3.5829]
[1726265761865,3.5816,139.53,139.47,3.5829]
[1726265762289,3.5816,139.53,139.48,3.5827]
[1726265762467,3.5816,139.53,139.43,6.3651509]
[1726265762468,21.52,139.53,139.43,6.3651509]
[1726265763476,21.52,139.52,139.43,6.3651509]
[1726265764367,2.7692,139.54,139.43,6.3651509]
[1726265764570,3.5815,139.53,139.47,3.5828]
[1726265764968,3.5815,139.53,139.43,6.3651509]
[1726265766275,3.5819,139.52,139.43,6.3651509]
[1726265766678,2.7692,139.54,139.47,3.5829]
[1726265766881,2.7692,139.54,139.43,6.3651509]
[1726265767272,6.3505,139.54,139.48,3.5826]
[1726265767476,21.52,139.53,139.48,3.5826]
[1726265767777,21.52,139.53,139.43,6.3651509]
[1726265767982,21.52,139.53,139.48,3.5825]
[1726265768776,21.52,139.52,139.43,6.3651509]
[1726265769274,21.52,139.52,139.49,3.5823]
[1726265769787,2.7692,139.54,139.43,2.7252]
[1726265770391,2.7692,139.54,139.5,3.5822]
[1726265771680,1.376,139.54,139.43,6.32387308]
[1726265772280,1.376,139.54,139.49,3.5822]
[1726265772468,1.376,139.54,139.43,6.32387308]
[1726265773281,1.376,139.54,139.5,3.5821]
[1726265775370,22.896,139.54,139.51,3.5819]
[1726265776471,1.376,139.54,139.51,3.5819]
[1726265778790,1.376,139.54,139.52,3.5816]
[1726265779085,22.896,139.54,139.5,3.57578556]
[1726265779385,1.373,139.56,139.55,3.5809]
[1726265782090,2.7323,139.59,139.52,3.58796637]
[1726265782288,1.2988,139.59,139.46,14.3404]
[1726265782589,1.2988,139.59,139.57,3.5803]
[1726265782782,1.2988,139.59,139.55,3.62884202]
[1726265783090,22.8188,139.59,139.48,1.3764]
[1726265783291,22.8188,139.59,139.56,3.5805]
[1726265783691,22.8188,139.59,139.55,3.5808]
[1726265783888,1.2988,139.59,139.55,3.5808]
[1726265784387,1.2988,139.59,139.56,3.5807]
[1726265784988,1.2988,139.59,139.49,1.3078]
[1726265785189,1.2988,139.59,139.57,3.5804]
[1726265786295,1.2988,139.59,139.58,3.5802]
[1726265786796,1.2988,139.59,139.55,3.65759055]
[1726265786983,1.2988,139.59,139.49,1.3078]
[1726265787185,1.2988,139.59,139.57,3.5802]
[1726265791095,1.2988,139.59,139.56,3.5806]
[1726265791394,1.2988,139.59,139.49,1.3078]
[1726265791583,4.8787,139.59,139.49,1.3078]
[1726265791785,21.52,139.58,139.49,1.3078]
[1726265791981,21.52,139.58,139.49,4.8662914]
[1726265792179,21.52,139.58,139.49,1.3078]
[1726265792381,21.52,139.58,139.54,3.581]
[1726265792591,21.52,139.58,139.52,3.54667392]
[1726265792791,1.2988,139.59,139.49,1.3078]
[1726265793589,1.2988,139.59,139.49,4.95402717]
[1726265795685,2.7532,139.61,139.58,3.5801]
[1726265796596,21.52,139.62,139.59,3.5797]
[1726265796896,1.399,139.63,139.59,3.5797]
[1726265799310,1.399,139.63,139.6,3.5796]
[1726265799784,1.399,139.63,139.62,3.5791]
[1726265801401,1.399,139.63,139.61,3.5793]
[1726265801904,1.399,139.63,139.62,3.5791]
[1726265802396,1.399,139.63,139.59,3.65367808]
[1726265802705,1.399,139.63,139.5,7.1643]
[1726265802905,1.399,139.63,139.51,1.31579239]
[1726265803404,1.399,139.63,139.48,1.3764]
[1726265803618,21.52,139.62,139.44,1.3541]
[1726265803797,21.52,139.62,139.5,3.5822]
[1726265803995,1.3984,139.61,139.5,3.50305523]
[1726265804202,1.3984,139.61,139.44,2.7215]
[1726265804412,1.3984,139.61,139.55,3.5809]
[1726265804707,22.9184,139.61,139.53,3.6373062]
[1726265805011,22.9184,139.61,139.44,2.7215]
[1726265805215,22.9184,139.61,139.45,1.3161136]
[1726265805607,21.52,139.6,139.45,1.3161136]
[1726265806210,21.52,139.6,139.54,3.5811]
[1726265806413,21.52,139.6,139.53,3.62392625]
[1726265806608,1.3984,139.61,139.44,9.8955]
[1726265806815,1.3984,139.61,139.54,3.5811]
[1726265807336,1.3984,139.61,139.53,3.56053708]
[1726265807518,1.3984,139.61,139.44,9.8955]
[1726265807719,1.3984,139.61,139.45,1.31607026]
[1726265808826,1.3984,139.61,139.54,3.5811]
[1726265809126,1.3984,139.61,139.54,7.13160942]
[1726265809331,1.3984,139.61,139.54,3.55050942]
[1726265809523,1.3984,139.61,139.53,3.5813]
[1726265809724,1.3984,139.61,139.44,9.8955]
[1726265809924,2.723,139.61,139.45,1.3161377]
[1726265810122,1.399,139.63,139.45,1.3161377]
[1726265810631,1.399,139.63,139.58,3.5799]
[1726265811224,1.399,139.63,139.46,233.174]
[1726265811529,1.399,139.63,139.47,1.31573437]
[1726265812632,1.399,139.63,139.48,1.31573437]
[1726265812936,1.399,139.63,139.49,4.14463437]
[1726265813236,1.399,139.63,139.5,1.31577526]
[1726265813425,1.3638,139.65,139.59,3.5799]
[1726265813833,1.3638,139.65,139.57,3.50057774]
[1726265814028,1.3638,139.65,139.49,2.8289]
[1726265814230,1.3638,139.65,139.5,1.31581005]